bitfinex/quotes_SOLUSD_20250806
["timestamp","ask_amount","ask_price","bid_price","bid_amount"]
[1754476429360,0.66,163.81,163.77,5.62817767]
[1754476430491,6.76474832,163.81,163.77,5.62817767]
[1754476430785,5.62817767,163.79,163.74,5.62817767]
[1754476430989,5.62817767,163.78,163.73,15.10621557]
[1754476431173,6.28817767,163.78,163.73,20.73439324]
[1754476431359,0.66,163.77,163.73,20.73439324]
[1754476431692,0.66,163.77,163.73,102.63439324]
[1754476431863,0.66,163.77,163.74,5.62817767]
[1754476434600,0.66,163.77,163.73,103.30362437]
[1754476434903,0.66,163.77,163.74,5.62817767]
[1754476436398,6.28817767,163.77,163.73,102.63439324]
[1754476436606,0.66,163.76,163.73,102.63439324]
[1754476436814,5.62817767,163.77,163.73,102.63439324]
[1754476436979,0.66,163.76,163.73,108.74193995]
[1754476437578,26.03,163.82,163.75,5.62817767]
[1754476437878,0.66,163.81,163.79,5.62817767]
[1754476438193,0.66,163.8,163.77,5.62817767]
[1754476440405,6.28817767,163.79,163.75,20.73439324]
[1754476440591,5.62817767,163.79,163.75,20.73439324]
[1754476440794,0.66,163.78,163.75,20.73439324]
[1754476441192,5.62817767,163.79,163.72,124.46]
[1754476441391,5.62817767,163.76,163.72,15.10621557]
[1754476441577,6.28817767,163.76,163.72,15.10621557]
[1754476441995,6.28817767,163.76,163.72,20.73439324]
[1754476442305,0.66,163.76,163.72,26.84216151]
[1754476443209,42.54,163.78,163.75,5.62817767]
[1754476443406,42.54,163.78,163.76,5.62817767]
[1754476443713,42.54,163.78,163.73,15.10621557]
[1754476443714,42.54,163.78,163.75,5.81817767]
[1754476444506,42.54,163.78,163.75,6.29674288]
[1754476444691,43.2,163.78,163.74,11.73527379]
[1754476444904,0.66,163.77,163.74,11.73527379]
[1754476445521,0.66,163.77,163.75,5.62817767]
[1754476446295,0.66,163.76,163.74,11.73527379]
[1754476447603,48.16817767,163.78,163.74,11.73527379]
[1754476447915,0.66,163.77,163.74,11.73527379]
[1754476449408,42.54,163.78,163.75,5.62817767]
[1754476449710,43.2,163.78,163.75,5.62817767]
[1754476450026,0.66,163.77,163.75,5.62817767]
[1754476453229,0.66,163.77,163.75,11.73504506]
[1754476453534,0.66,163.77,163.75,5.62817767]
[1754476454308,0.66,163.77,163.74,93.63526508]
[1754476456027,0.66,163.77,163.75,11.73494118]
[1754476457127,0.66,163.77,163.74,81.9]
[1754476457128,5.62817767,163.77,163.74,81.9]
[1754476457332,0.65,163.76,163.74,81.9]
[1754476457521,48.16817767,163.78,163.74,81.9]
[1754476457711,0.65,163.76,163.73,108.74173599]
[1754476457912,0.65,163.76,163.74,5.62817767]
[1754476458113,42.54,163.78,163.74,0.19]
[1754476458310,42.54,163.78,163.75,5.62817767]
[1754476458635,43.19,163.78,163.75,5.62817767]
[1754476460137,43.19,163.78,163.75,11.73470741]
[1754476460836,43.19,163.78,163.75,6.10652974]
[1754476461025,42.54,163.78,163.76,20.73439324]
[1754476461207,0.03,163.8,163.77,5.81817767]
[1754476461407,0.03,163.8,163.78,5.62817767]
[1754476461408,42.57,163.8,163.78,5.62817767]
[1754476461705,43.22,163.8,163.77,5.62817767]
[1754476462232,43.22,163.8,163.78,6.10575161]
[1754476463136,42.57,163.8,163.79,20.73439324]
[1754476464239,42.57,163.8,163.79,26.83977207]
[1754476465525,42.57,163.8,163.79,21.2115944]
[1754476465732,43.22,163.8,163.79,26.83977207]
[1754476466637,42.57,163.8,163.79,26.83977207]
[1754476467619,0.03,163.8,163.79,27.02977207]
[1754476468518,0.03,163.8,163.79,108.92977207]
[1754476471351,0.03,163.8,163.79,108.73977207]
[1754476473414,0.68,163.8,163.79,108.73977207]
[1754476474028,0.03,163.8,163.79,108.73977207]
[1754476474349,0.03,163.8,163.79,108.92977207]
[1754476474641,0.03,163.8,163.79,108.73977207]
[1754476475448,0.03,163.8,163.79,108.92977207]
[1754476476934,0.03,163.8,163.79,151.46977207]
[1754476477927,0.03,163.8,163.79,151.27977207]
[1754476479835,0.03,163.8,163.79,108.73977207]
[1754476480253,0.03,163.8,163.79,108.92977207]
[1754476480444,0.03,163.82,163.8,15.10621557]
[1754476480638,0.03,163.85,163.83,46.73439324]
[1754476480842,0.03,163.85,163.84,63.27439324]
[1754476481573,0.03,163.85,163.84,63.46439324]
[1754476481734,0.03,163.85,163.84,69.56790886]
[1754476482127,0.03,163.85,163.84,73.76289886]
[1754476485739,1e-08,163.85,163.84,73.76289886]
[1754476486845,0.1,163.92,163.84,73.76289886]
[1754476486846,0.7,163.91,163.85,15.10621557]
[1754476487045,0.7,163.91,163.9,5.62817767]
[1754476487257,0.7,163.91,163.9,87.52817767]
[1754476487570,0.7,163.91,163.9,102.63439324]
[1754476487743,0.1,163.92,163.91,15.10621557]
[1754476488065,0.8,163.92,163.91,20.73439324]
[1754476488262,0.8,163.92,163.9,5.62817767]
[1754476490963,0.8,163.92,163.89,11.72969387]
[1754476491179,0.1,163.92,163.91,5.62817767]
[1754476492040,0.8,163.92,163.91,5.62817767]
[1754476493071,0.8,163.92,163.91,11.7290867]
[1754476493369,0.8,163.92,163.91,108.73530227]
[1754476496671,0.8,163.92,163.91,103.1071246]
[1754476496873,0.8,163.92,163.91,108.73530227]
[1754476500461,0.8,163.92,163.91,81.9]
[1754476501154,0.8,163.92,163.91,87.52817767]
[1754476501572,0.8,163.92,163.91,81.9]
[1754476501783,0.8,163.92,163.91,87.52817767]
[1754476502691,0.1,163.92,163.91,108.73530227]
[1754476504179,0.8,163.92,163.91,108.73530227]
[1754476507777,0.1,163.92,163.91,108.73530227]
[1754476509685,0.1,163.92,163.91,151.42530227]
[1754476509886,0.1,163.92,163.91,151.23530227]
[1754476512468,0.1,163.92,163.91,151.42530227]
[1754476513906,0.8,163.97,163.92,15.10621557]
[1754476514209,0.1,163.97,163.96,5.62817767]
[1754476514493,0.1,163.97,163.96,11.72722621]
[1754476514684,0.8,163.97,163.96,11.72722621]
[1754476516474,0.1,163.97,163.96,26.83344178]
[1754476520019,0.1,163.97,163.96,108.73344178]
[1754476522997,0.1,163.97,163.96,108.92344178]
[1754476524422,0.1,163.97,163.96,108.73344178]
[1754476524929,0.75,163.97,163.96,108.73344178]
[1754476527020,0.1,163.97,163.96,108.73344178]
[1754476527529,0.75,163.97,163.96,108.73344178]
[1754476528414,0.1,163.97,163.96,108.92344178]
[1754476528734,86.46,164.08,164.0,15.10621557]
[1754476528930,0.65,164.03,164.02,5.62817767]
[1754476529236,0.65,164.03,164.0,87.52817767]
[1754476530511,0.65,164.03,164.01,5.62817767]
[1754476530725,5.62817767,164.06,164.02,5.62817767]
[1754476531037,5.62817767,164.07,164.02,5.62817767]
[1754476531443,0.65,164.06,164.03,5.62817767]
[1754476531627,0.65,164.06,164.04,5.62817767]
[1754476532025,0.65,164.06,164.03,5.62817767]
[1754476532732,0.65,164.06,164.04,5.62817767]
[1754476532934,86.46,164.08,164.05,5.62817767]
[1754476533237,0.65,164.06,164.02,6.09666114]
[1754476533425,0.65,164.06,164.05,5.62817767]
[1754476533627,0.65,164.06,164.02,6.09666114]
[1754476533837,0.65,164.06,164.05,5.62817767]
[1754476534449,0.65,164.06,164.02,6.09666114]
[1754476534732,86.48,164.08,164.05,5.62817767]
[1754476535108,86.48,164.08,164.04,5.62817767]
[1754476535339,0.65,164.07,164.04,5.62817767]
[1754476543544,0.65,164.07,164.04,87.52817767]
[1754476544464,0.65,164.07,164.04,81.9]
[1754476546191,5.62817767,164.06,163.97,107.96]
[1754476546342,5.62817767,164.04,163.98,15.10621557]
[1754476546529,6.28817767,164.03,163.98,15.10621557]
[1754476546726,26.0,164.04,163.98,20.73439324]
[1754476546727,48.76817767,164.02,163.98,20.73439324]
[1754476546927,48.76817767,164.02,163.97,81.96]
[1754476546928,0.66,164.01,163.97,5.68817767]
[1754476547122,5.62817767,163.99,163.97,0.06]
[1754476547348,42.5,163.98,163.97,0.06]
[1754476547536,42.5,163.98,163.97,15.16621557]
[1754476547738,43.16,163.98,163.97,0.06]
[1754476547958,48.78817767,163.98,163.97,0.06]
[1754476548658,54.88648234,163.98,163.97,0.06]
[1754476549153,48.78817767,163.98,163.97,0.06]
[1754476551338,69.16,163.98,163.97,0.06]
[1754476551536,80.88648234,163.98,163.97,0.06]
[1754476551754,84.97074303,163.98,163.97,0.06]
[1754476551939,84.97074303,163.98,163.9,81.9]
[1754476551940,73.24426069,163.98,163.92,20.73439324]
[1754476552142,48.78817767,163.98,163.93,5.62817767]
[1754476552355,6.28817767,163.97,163.93,5.62817767]
[1754476552648,6.28817767,163.97,163.92,5.81817767]
[1754476552855,0.66,163.96,163.92,5.81817767]
[1754476553060,42.56,163.95,163.92,11.91846441]
[1754476553258,42.56,163.95,163.93,5.62817767]
[1754476553642,42.56,163.95,163.92,6.29028674]
[1754476553846,42.56,163.95,163.93,5.81817767]
[1754476554651,42.56,163.95,163.93,5.62817767]
[1754476554854,42.56,163.95,163.92,6.10028674]
[1754476555040,42.56,163.95,163.93,5.62817767]
[1754476555233,42.56,163.95,163.94,20.73439324]
[1754476555434,42.56,163.95,163.94,20.92439324]
[1754476556261,42.56,163.95,163.94,20.73439324]
[1754476556662,0.66,163.98,163.94,20.73439324]
[1754476556844,43.22,163.97,163.94,15.10621557]
[1754476557171,0.66,163.96,163.94,15.10621557]
[1754476557736,0.66,163.95,163.92,11.72865129]
[1754476557955,43.22,163.94,163.91,6.10082349]
[1754476558263,0.66,163.93,163.91,15.10621557]
[1754476558955,0.66,163.93,163.91,21.20696304]
[1754476559135,0.66,163.92,163.91,21.20696304]
[1754476559330,42.56,163.94,163.91,21.20696304]
[1754476559331,0.66,163.93,163.91,21.20696304]
[1754476559545,42.56,163.94,163.91,21.20696304]
[1754476559851,43.22,163.94,163.91,15.10621557]
[1754476560048,0.66,163.93,163.9,81.9]
[1754476560244,6.28817767,163.93,163.9,81.9]
[1754476560449,0.66,163.93,163.9,88.00121297]
[1754476561357,0.66,163.93,163.9,6.10121297]
[1754476562056,42.56,163.94,163.9,11.72939064]
[1754476562374,0.66,163.93,163.9,15.10621557]
[1754476563164,0.66,163.92,163.9,15.10621557]
[1754476563343,42.58,163.91,163.9,15.10621557]
[1754476563545,42.58,163.91,163.9,88.00128126]
[1754476563863,42.58,163.91,163.9,93.62945893]
[1754476564063,42.58,163.91,163.9,108.9256745]
[1754476565765,42.58,163.94,163.91,15.10621557]
[1754476565965,42.58,163.94,163.93,5.62817767]
[1754476567502,42.58,163.94,163.93,6.1001647]
[1754476567646,42.58,163.94,163.93,5.62817767]
[1754476567849,43.24,163.94,163.92,11.72857099]
[1754476568646,0.66,163.93,163.91,15.10621557]
[1754476568866,6.28817767,163.93,163.9,81.9]
[1754476569066,0.66,163.92,163.9,81.9]
[1754476569382,43.24,163.91,163.9,81.9]
[1754476569968,43.24,163.91,163.9,88.00128126]
[1754476570170,43.24,163.91,163.9,6.10128126]
[1754476570487,43.24,163.91,163.89,11.72975198]
[1754476571484,42.58,163.91,163.89,11.72975198]
[1754476571785,0.66,163.9,163.89,26.83596755]
[1754476571991,0.66,163.9,163.89,108.73596755]
[1754476572378,43.24,163.91,163.89,108.73596755]
[1754476572889,0.66,163.9,163.89,103.10778988]
[1754476573097,0.66,163.9,163.89,108.73596755]
[1754476573457,0.66,163.9,163.89,102.63439324]
[1754476575499,0.66,163.9,163.89,108.73604678]
[1754476575698,42.58,163.91,163.89,108.73604678]
[1754476575876,42.58,163.91,163.9,5.62817767]
[1754476576073,42.58,163.91,163.9,87.52817767]
[1754476576493,43.29,163.91,163.9,87.52817767]
[1754476576913,43.29,163.91,163.9,81.9]
[1754476578507,42.58,163.91,163.9,93.62945893]
[1754476580911,42.58,163.91,163.9,108.7356745]
[1754476581116,0.71,163.97,163.91,15.10621557]
[1754476581314,42.56,163.96,163.95,5.62817767]
[1754476581508,43.27,163.96,163.95,5.62817767]
[1754476582290,43.27,163.96,163.91,97.19621557]
[1754476582547,0.71,163.95,163.94,5.62817767]
[1754476584298,0.71,163.95,163.94,11.72797027]
[1754476585013,42.56,163.96,163.94,11.72797027]
[1754476585432,43.27,163.96,163.94,11.72797027]
[1754476586339,42.56,163.96,163.95,20.73439324]
[1754476586629,42.56,163.96,163.95,102.63439324]
[1754476586630,43.27,163.96,163.95,102.63439324]
[1754476586834,43.27,163.96,163.94,5.62817767]
[1754476586994,0.71,163.95,163.94,5.62817767]
[1754476587604,0.71,163.95,163.93,5.62817767]
[1754476588012,0.71,163.94,163.93,5.62817767]
[1754476589514,0.71,163.94,163.92,93.62860082]
[1754476590904,0.71,163.94,163.92,11.72860082]
[1754476591099,0.71,163.93,163.91,108.73518709]
[1754476591934,0.71,163.93,163.91,102.63439324]
[1754476592250,0.71,163.92,163.9,15.16621557]
[1754476592538,0.71,163.92,163.9,0.06]
[1754476592902,10.44341965,163.92,163.9,0.06]
[1754476593402,9.73341965,163.92,163.9,0.06]
[1754476593604,0.71,163.91,163.9,0.06]
[1754476598956,6.33817767,163.91,163.9,0.06]
[1754476600651,16.54432868,163.91,163.9,0.06]
[1754476600829,10.44341965,163.91,163.9,0.06]
[1754476602127,4.81524198,163.91,163.9,0.06]
[1754476602341,10.44341965,163.91,163.9,0.06]
[1754476604042,16.54432868,163.91,163.9,0.06]
[1754476604426,10.44341965,163.91,163.9,0.06]
[1754476606549,4.10524198,163.91,163.9,0.06]
[1754476606731,46.64524198,163.91,163.9,0.06]
[1754476610454,42.54,163.91,163.9,11.78945893]
[1754476610655,0.67,163.95,163.91,15.10621557]
[1754476610949,42.54,163.95,163.94,5.62817767]
[1754476611848,42.54,163.95,163.93,11.72806627]
[1754476612153,42.54,163.95,163.92,0.19]
[1754476612154,42.54,163.95,163.92,6.10041014]
[1754476612351,42.54,163.95,163.9,0.06]
[1754476612352,0.67,163.94,163.9,0.06]
[1754476612587,10.3962826,163.94,163.9,0.06]
[1754476612733,6.29817767,163.93,163.9,0.06]
[1754476612935,42.54,163.92,163.9,0.06]
[1754476613156,43.21,163.92,163.9,0.06]
[1754476613358,0.67,163.91,163.9,0.06]
[1754476619587,42.54,163.92,163.9,5.68817767]
[1754476619790,42.54,163.92,163.91,5.62817767]
[1754476620873,42.54,163.94,163.91,20.92439324]
[1754476621078,42.54,163.94,163.93,5.62817767]
[1754476621396,42.54,163.94,163.93,20.73439324]
[1754476621563,42.54,163.94,163.93,26.83455794]
[1754476621764,43.21,163.96,163.93,26.83455794]
[1754476622086,43.21,163.96,163.94,5.62817767]
[1754476622482,0.67,163.95,163.93,108.73455794]
[1754476622676,0.67,163.95,163.93,102.63439324]
[1754476622883,0.67,163.94,163.93,102.63439324]
[1754476623082,0.67,163.94,163.93,81.9]
[1754476625770,42.54,163.96,163.93,81.9]
[1754476625771,43.21,163.96,163.93,81.9]
[1754476626094,0.67,163.95,163.93,81.9]
[1754476626292,0.67,163.95,163.93,5.62817767]
[1754476626489,0.67,163.95,163.93,5.68817767]
[1754476628286,0.67,163.94,163.93,0.06]
[1754476628869,6.29817767,163.94,163.93,0.06]
[1754476629201,26.0,163.92,163.91,0.06]
[1754476629490,78.26632282,163.92,163.91,0.06]
[1754476629798,78.93632282,163.92,163.91,0.06]
[1754476636120,74.83817767,163.92,163.91,0.06]
[1754476636413,78.93765449,163.92,163.91,0.06]
[1754476636571,85.04819133,163.92,163.91,0.06]
[1754476637304,78.94765449,163.92,163.91,0.06]
[1754476651625,46.63947682,163.92,163.91,0.06]
[1754476651828,0.03,163.93,163.91,5.93817767]
[1754476651996,0.03,163.93,163.91,15.16621557]
[1754476651997,42.52,163.92,163.91,15.16621557]
[1754476652196,42.52,163.92,163.91,20.79439324]
[1754476652395,0.03,163.93,163.91,20.79439324]
[1754476652396,42.55,163.93,163.91,20.79439324]
[1754476652621,42.55,163.93,163.92,5.87817767]
[1754476652822,0.03,163.93,163.92,20.98439324]
[1754476653901,0.03,163.93,163.92,27.08493008]
[1754476654316,0.03,163.93,163.92,53.08493008]
[1754476657647,0.03,163.93,163.92,47.45675241]
[1754476657809,0.03,163.93,163.92,41.10621557]
[1754476658016,0.03,163.93,163.92,15.10621557]
[1754476658908,0.03,163.93,163.92,21.20675241]
[1754476661911,0.03,163.93,163.92,103.10675241]
[1754476662736,0.03,163.93,163.92,108.98493008]
[1754476663122,0.03,163.93,163.92,108.73493008]
[1754476663310,0.03,163.93,163.92,102.63439324]
[1754476663511,0.03,163.93,163.92,97.00621557]
[1754476663936,6.33817767,163.93,163.92,81.9]
[1754476665511,0.71,163.93,163.92,81.9]
[1754476665919,0.03,163.93,163.92,81.9]
[1754476666116,0.71,163.93,163.92,81.9]
[1754476667526,6.33817767,163.93,163.92,81.9]
[1754476667728,6.33817767,163.93,163.91,0.06]
[1754476667928,42.52,163.92,163.91,0.06]
[1754476668128,43.19,163.92,163.91,0.06]
[1754476671747,42.52,163.92,163.91,0.06]
[1754476672326,43.19,163.92,163.91,0.06]
[1754476672749,42.52,163.92,163.91,0.06]
[1754476673253,43.19,163.92,163.91,0.06]
[1754476676549,42.52,163.92,163.91,0.06]
[1754476676960,43.19,163.92,163.91,0.06]
[1754476679448,48.81817767,163.92,163.91,0.06]
[1754476679629,59.01725969,163.92,163.91,0.06]
[1754476680128,47.28854518,163.92,163.91,0.06]
[1754476680332,52.91672285,163.92,163.91,0.06]
[1754476682639,59.01725969,163.92,163.91,0.06]
[1754476683525,52.91672285,163.92,163.91,0.06]
[1754476685659,59.01725969,163.92,163.91,0.06]
[1754476686764,52.91672285,163.92,163.91,0.06]
[1754476692753,59.01725969,163.92,163.91,0.06]
[1754476693047,52.91672285,163.92,163.91,0.06]
[1754476694048,4.09854518,163.92,163.91,0.06]
[1754476694233,42.52,163.92,163.91,0.06]
[1754476694866,42.52,163.92,163.91,5.93817767]
[1754476697070,42.52,163.92,163.91,11.7890867]
[1754476701558,42.52,163.92,163.91,0.06]
[1754476701869,52.90984387,163.92,163.91,0.06]
[1754476702942,46.6216662,163.92,163.91,0.06]
[1754476703142,43.18,163.92,163.91,0.06]
[1754476703379,47.28305179,163.92,163.91,0.06]
[1754476704455,43.18,163.92,163.91,0.06]
[1754476705550,47.28376584,163.92,163.91,0.06]
[1754476705943,43.18,163.92,163.91,0.06]
[1754476706362,47.28403868,163.92,163.91,0.06]
[1754476708366,46.62403868,163.92,163.91,0.06]
[1754476708569,42.52,163.92,163.91,0.06]
[1754476709769,43.18,163.92,163.91,0.06]
[1754476709949,47.28512227,163.92,163.91,0.06]
[1754476711580,42.52,163.92,163.91,5.68817767]
[1754476712377,42.52,163.92,163.91,0.06]
[1754476712775,42.52,163.92,163.91,5.68817767]
[1754476713464,42.52,163.92,163.91,0.06]
[1754476713665,42.52,163.92,163.91,5.68817767]
[1754476714877,42.52,163.92,163.91,11.7890867]
[1754476720798,0.03,163.93,163.92,15.10621557]
[1754476721085,0.03,163.93,163.92,20.98439324]
[1754476721287,0.03,163.93,163.92,27.08493008]
[1754476722396,0.03,163.93,163.92,26.83493008]
[1754476722683,0.69,163.93,163.91,15.16621557]
[1754476722980,0.69,163.93,163.91,21.2671063]
[1754476723198,42.5,163.92,163.91,21.2671063]
[1754476723482,43.16,163.92,163.91,21.2671063]
[1754476723995,43.16,163.92,163.91,15.16621557]
[1754476725097,43.16,163.92,163.91,21.2671246]
[1754476727493,42.5,163.92,163.91,26.89530227]
[1754476728605,0.03,163.93,163.91,26.89530227]
[1754476728910,0.03,163.93,163.92,5.62817767]
[1754476729989,0.03,163.93,163.92,108.73493008]
[1754476732473,0.72,163.93,163.92,102.63439324]
[1754476733697,0.72,163.93,163.92,103.10675241]
[1754476734078,0.03,163.93,163.92,103.10675241]
[1754476734486,0.72,163.93,163.92,102.63439324]
[1754476735800,0.72,163.93,163.92,108.73493008]
[1754476736103,0.03,163.93,163.92,108.73493008]
[1754476740297,0.03,163.93,163.92,103.10675241]
[1754476740605,0.72,163.93,163.92,103.10675241]
[1754476741093,0.72,163.93,163.92,108.73493008]
[1754476741302,0.03,163.93,163.92,108.73493008]
[1754476744694,0.03,163.93,163.92,108.98493008]
[1754476746184,0.03,163.93,163.92,108.73493008]
[1754476746988,0.03,163.93,163.92,108.98493008]
[1754476749588,0.03,163.93,163.92,108.73493008]
[1754476752008,0.03,163.93,163.92,108.98493008]
[1754476752696,0.03,163.95,163.93,15.10621557]
[1754476752911,0.03,163.95,163.94,15.10621557]
[1754476753213,0.03,163.95,163.94,26.83418584]
[1754476753587,0.72,163.95,163.94,26.83418584]
[1754476754416,0.03,163.95,163.94,26.83418584]
[1754476754616,0.72,163.95,163.94,26.83418584]
[1754476755424,0.03,163.95,163.94,26.83418584]
[1754476756218,0.72,163.95,163.94,21.20600817]
[1754476756396,0.72,163.95,163.94,26.83418584]
[1754476756601,0.03,163.95,163.94,108.73418584]
[1754476757308,0.72,163.95,163.94,108.73418584]
[1754476759121,0.72,163.95,163.94,103.10600817]
[1754476759419,0.72,163.95,163.94,108.73418584]
[1754476761906,0.03,163.95,163.94,108.73418584]
[1754476762412,0.03,163.95,163.94,108.98418584]
[1754476763098,0.03,163.95,163.94,151.46418584]
[1754476767259,1e-08,163.95,163.94,151.46418584]
[1754476767423,0.03,163.97,163.96,15.10621557]
[1754476767619,0.03,163.97,163.96,145.11439323]
[1754476767827,0.03,163.97,163.96,145.36439323]
[1754476769248,0.03,163.97,163.96,151.46344177]
[1754476769547,1e-08,163.97,163.96,151.46344177]
[1754476770527,1e-08,163.97,163.96,155.55985877]
[1754476775033,1e-08,163.97,163.96,151.21344177]
[1754476775442,0.69000001,163.97,163.96,151.19344177]
[1754476775645,1e-08,163.97,163.96,151.19344177]
[1754476775944,1e-08,163.97,163.96,151.44344177]
[1754476777532,1e-08,163.97,163.96,151.19344177]
[1754476777767,0.69000001,163.97,163.96,151.19344177]
[1754476778856,0.69000001,163.97,163.96,151.25344177]
[1754476780457,0.69000001,163.97,163.96,108.79344177]
[1754476790857,1e-08,163.97,163.96,108.79344177]
[1754476792066,0.67000001,163.97,163.96,108.79344177]
[1754476792560,1e-08,163.97,163.96,103.1652641]
[1754476792774,1e-08,163.97,163.96,108.79344177]
[1754476792950,1e-08,163.97,163.96,151.25344177]
[1754476794638,1e-08,163.97,163.96,149.19982049]
[1754476794860,0.67000001,163.97,163.96,149.19982049]
[1754476796060,0.67000001,163.97,163.96,145.6252641]
[1754476796358,1e-08,163.97,163.96,149.19982049]
[1754476800361,1e-08,163.97,163.96,106.73982049]
[1754476802569,0.67000001,163.97,163.96,106.73982049]
[1754476803079,0.67000001,163.97,163.96,110.8263411]
[1754476803368,0.67000001,163.97,163.96,7.721077]
[1754476803772,0.67000001,163.97,163.96,0.06]
[1754476805379,0.67000001,163.97,163.96,18.74077196]
[1754476806856,1e-08,163.97,163.96,24.8398205]
[1754476807461,1e-08,163.97,163.96,25.5598205]
[1754476807977,1e-08,163.97,163.96,107.45982049]
[1754476808377,1e-08,163.97,163.96,149.91982049]
[1754476808682,1e-08,163.97,163.96,151.92922966]
[1754476808853,1e-08,163.97,163.96,109.46922966]
[1754476809058,1e-08,163.97,163.96,108.74922966]
[1754476809267,0.67000001,163.97,163.96,108.74922966]
[1754476812684,0.67000001,163.97,163.96,26.84922967]
[1754476813673,0.67000001,163.97,163.96,0.06]
[1754476823476,1e-08,163.97,163.96,20.75018113]
[1754476824484,1e-08,163.97,163.96,102.65018112]
[1754476825091,1e-08,163.97,163.96,108.74922966]
[1754476827891,1e-08,163.97,163.96,109.40922966]
[1754476828475,1e-08,163.97,163.96,113.54022066]
[1754476828792,1e-08,163.97,163.96,137.5288288]
[1754476830773,1e-08,163.99,163.97,15.10621557]
[1754476830974,1e-08,163.99,163.98,63.14848557]
[1754476831174,4.10338014,164.05,163.99,15.10621557]
[1754476831371,0.66,164.06,164.04,5.58227]
[1754476831593,0.66,164.06,164.03,5.58227]
[1754476831594,4.76338014,164.06,164.03,5.58227]
[1754476831794,10.34565014,164.05,164.01,15.10621557]
[1754476832003,23.01342042,164.08,164.0,81.89999999]
[1754476832004,5.58227,164.03,164.0,81.89999999]
[1754476832299,5.58227,164.03,163.99,15.10621557]
[1754476832300,0.66,164.02,163.99,15.10621557]
[1754476832490,0.66,164.02,163.98,5.58227]
[1754476832880,0.66,164.02,163.99,11.6802028]
[1754476834283,0.66,164.02,163.99,6.0979328]
[1754476834595,0.66,164.02,163.98,11.68045529]
[1754476836298,0.66,164.02,163.98,93.58045528]
[1754476836594,0.66,164.02,163.99,21.2041159]
[1754476836798,0.66,164.02,163.99,26.7863859]
[1754476837180,26.66,164.04,164.0,5.58227]
[1754476837383,0.66,164.03,164.01,5.58227]
[1754476837692,30.10014791,164.05,164.01,5.58227]
[1754476837893,4.76014791,164.04,164.01,5.58227]
[1754476838088,0.66,164.03,164.01,5.58227]
[1754476838503,0.66,164.03,164.0,11.67962912]
[1754476838802,0.66,164.02,164.0,11.67962912]
[1754476839181,4.10014791,164.04,164.0,11.67962912]
[1754476839383,0.66,164.03,164.0,11.67962912]
[1754476841401,0.66,164.02,164.0,11.67962912]
[1754476842308,4.76014791,164.04,164.0,93.57962911]
[1754476842500,4.76014791,164.04,164.01,5.58227]
[1754476843507,4.76014791,164.04,164.01,11.67942254]
[1754476843691,0.66,164.04,164.02,20.68848557]
[1754476844285,4.75970567,164.06,164.02,20.68848557]
[1754476844599,4.75970567,164.06,164.03,5.58227]
[1754476844798,4.78970567,164.06,164.03,5.58227]
[1754476845602,0.66,164.05,164.03,5.58227]
[1754476846325,0.66,164.05,164.03,11.67869161]
[1754476846621,0.66,164.05,164.02,26.78514578]
[1754476847593,4.12970567,164.06,164.03,5.58227]
[1754476847908,4.79970567,164.06,164.03,5.58227]
[1754476848217,4.79970567,164.06,164.03,87.48226999]
[1754476848398,4.12970567,164.06,164.03,87.48226999]
[1754476848701,0.67,164.05,164.03,87.48226999]
[1754476850125,0.67,164.05,164.03,93.57844656]
[1754476851716,4.79970567,164.06,164.03,93.57844656]